[Event "Nové Hrady - Open"]
[Site "Nové Hrady, Czech Republic"]
[Date "2024.08.15"]
[Round "5.1"]
[White "Šimůnek, Jakub Šimon"]
[Black "Dudek, Vojtěch"]
[Result "1/2-1/2"]
[TimeControl "2x90min+30s"]
[WhiteFideId "23709464"]
[BlackFideId "398780"]
[WhiteElo "2042"]
[BlackElo "2117"]

1. e4 {[%clk 01:30:57]} {[%emt 00:00:03]} c5 {[%clk 01:30:45]} {[%emt
00:00:15]} 2. Nf3 {[%clk 01:31:22]} {[%emt 00:00:05]} Nc6 {[%clk 01:31:08]}
{[%emt 00:00:07]} 3. Bb5 {[%clk 01:31:47]} {[%emt 00:00:05]} e6 {[%clk
01:31:03]} {[%emt 00:00:34]} 4. O-O {[%clk 01:32:10]} {[%emt 00:00:07]} Nge7
{[%clk 01:31:01]} {[%emt 00:00:31]} 5. Re1 {[%clk 01:32:29]} {[%emt 00:00:12]}
a6 {[%clk 01:31:26]} {[%emt 00:00:06]} 6. Bf1 {[%clk 01:32:51]} {[%emt
00:00:08]} d5 {[%clk 01:31:48]} {[%emt 00:00:07]} 7. exd5 {[%clk 01:33:15]}
{[%emt 00:00:06]} Nxd5 {[%clk 01:32:10]} {[%emt 00:00:07]} 8. d4 {[%clk
01:33:41]} {[%emt 00:00:06]} Nf6 {[%clk 01:32:26]} {[%emt 00:00:10]} 9. Be3
{[%clk 01:33:44]} {[%emt 00:00:31]} Be7 {[%clk 01:32:34]} {[%emt 00:00:22]} 10.
c4 {[%clk 01:33:44]} {[%emt 00:00:31]} O-O {[%clk 01:24:36]} {[%emt 00:08:25]}
11. Nc3 {[%clk 01:31:17]} {[%emt 00:02:59]} cxd4 {[%clk 01:24:49]} {[%emt
00:00:16]} 12. Nxd4 {[%clk 01:31:39]} {[%emt 00:00:09]} Qc7 {[%clk 01:20:21]}
{[%emt 00:04:57]} 13. Nxc6 {[%clk 01:20:06]} {[%emt 00:12:04]} Qxc6 {[%clk
01:19:34]} {[%emt 00:01:16]} 14. Be2 {[%clk 01:17:02]} {[%emt 00:03:34]} Rd8
{[%clk 01:16:02]} {[%emt 00:04:01]} 15. Qb3 {[%clk 01:14:56]} {[%emt 00:02:38]}
Bc5 {[%clk 00:56:15]} {[%emt 00:20:17]} 16. Bf3 {[%clk 00:58:58]} {[%emt
00:16:28]} Qc7 {[%clk 00:56:26]} {[%emt 00:00:17]} 17. Bxc5 {[%clk 00:59:12]}
{[%emt 00:00:18]} Qxc5 {[%clk 00:56:46]} {[%emt 00:00:09]} 18. Na4 {[%clk
00:59:39]} {[%emt 00:00:04]} Qc7 {[%clk 00:53:34]} {[%emt 00:03:41]} 19. Qb6
{[%clk 00:58:52]} {[%emt 00:01:17]} Qxb6 {[%clk 00:48:07]} {[%emt 00:05:58]} 20.
Nxb6 {[%clk 00:59:21]} Rb8 {[%clk 00:47:55]} {[%emt 00:00:43]} 21. Rad1 {[%clk
00:56:52]} {[%emt 00:02:59]} Bd7 {[%clk 00:45:26]} {[%emt 00:02:58]} 22. Nxd7
{[%clk 00:51:38]} {[%emt 00:05:45]} Rxd7 {[%clk 00:29:41]} {[%emt 00:16:14]} 23.
Rxd7 {[%clk 00:51:56]} {[%emt 00:00:12]} Nxd7 {[%clk 00:30:09]} 24. Rd1 {[%clk
00:52:15]} {[%emt 00:00:14]} Ne5 {[%clk 00:26:28]} {[%emt 00:04:11]} 25. Bxb7
{[%clk 00:52:26]} {[%emt 00:00:19]} g5 {[%clk 00:26:50]} {[%emt 00:00:08]} 26.
Bxa6 {[%clk 00:47:36]} {[%emt 00:05:20]} Rxb2 {[%clk 00:27:17]} {[%emt
00:00:03]} 27. a4 {[%clk 00:47:46]} {[%emt 00:00:21]} Ra2 {[%clk 00:18:51]}
{[%emt 00:08:54]} 28. Bb5 {[%clk 00:48:06]} {[%emt 00:00:10]} Nd3 {[%clk
00:18:22]} {[%emt 00:00:59]} 29. g3 {[%clk 00:34:35]} {[%emt 00:14:01]} Nc5
{[%clk 00:15:23]} {[%emt 00:03:29]} 30. Rd8+ {[%clk 00:33:52]} {[%emt
00:01:13]} Kg7 {[%clk 00:15:51]} 31. Ra8 {[%clk 00:34:13]} {[%emt 00:00:10]} g4
{[%clk 00:15:40]} {[%emt 00:00:42]} 32. Rc8 {[%clk 00:08:29]} {[%emt 00:26:15]}
Nd3 {[%clk 00:07:26]} {[%emt 00:08:44]} 33. c5 {[%clk 00:05:52]} {[%emt
00:03:07]} Ra1+ {[%clk 00:07:43]} {[%emt 00:00:11]} 34. Kg2 {[%clk 00:06:19]}
{[%emt 00:00:04]} Ne5 {[%clk 00:08:05]} {[%emt 00:00:08]} 35. c6 {[%clk
00:04:13]} {[%emt 00:02:36]} Nf3 {[%clk 00:08:10]} {[%emt 00:00:25]} 36. Bf1
{[%clk 00:04:37]} {[%emt 00:00:07]} Ne1+ {[%clk 00:08:00]} {[%emt 00:00:39]} 37.
Kg1 {[%clk 00:05:01]} {[%emt 00:00:06]} Nf3+ {[%clk 00:08:26]} {[%emt
00:00:05]} 1/2-1/2

[Event "Nové Hrady - Open"]
[Site "Nové Hrady, Czech Republic"]
[Date "2024.08.15"]
[Round "5.2"]
[White "Kaiser, Richard"]
[Black "Žilavý, Jan"]
[Result "0-1"]
[TimeControl "2x90min+30s"]
[WhiteFideId "4651286"]
[BlackFideId "350141"]
[WhiteElo "2019"]
[BlackElo "2127"]

1. e4 {[%clk 01:30:58]} {[%emt 00:00:02]} c6 {[%clk 01:30:34]} {[%emt
00:00:26]} 2. c4 {[%clk 01:31:16]} {[%emt 00:00:12]} d5 {[%clk 01:30:57]}
{[%emt 00:00:06]} 3. cxd5 {[%clk 01:31:39]} {[%emt 00:00:07]} cxd5 {[%clk
01:31:18]} {[%emt 00:00:09]} 4. exd5 {[%clk 01:32:04]} {[%emt 00:00:06]} Nf6
{[%clk 01:31:16]} {[%emt 00:00:32]} 5. Qa4+ {[%clk 01:32:13]} {[%emt 00:00:22]}
Nbd7 {[%clk 01:29:41]} {[%emt 00:02:04]} 6. Nc3 {[%clk 01:32:31]} {[%emt
00:00:12]} g6 {[%clk 01:28:15]} {[%emt 00:01:55]} 7. Nf3 {[%clk 01:32:00]}
{[%emt 00:01:02]} Bg7 {[%clk 01:28:09]} {[%emt 00:00:35]} 8. d4 {[%clk
01:26:02]} {[%emt 00:06:28]} O-O {[%clk 01:28:15]} {[%emt 00:00:25]} 9. d6
{[%clk 01:24:29]} {[%emt 00:02:03]} Nb6 {[%clk 01:26:33]} {[%emt 00:02:12]} 10.
Qa3 {[%clk 01:24:50]} {[%emt 00:00:09]} exd6 {[%clk 01:18:29]} {[%emt
00:08:34]} 11. Be2 {[%clk 01:12:20]} {[%emt 00:12:59]} Re8 {[%clk 01:17:19]}
{[%emt 00:01:41]} 12. O-O {[%clk 01:12:33]} {[%emt 00:00:16]} Nbd5 {[%clk
01:00:04]} {[%emt 00:17:45]} 13. Bb5 {[%clk 01:09:37]} {[%emt 00:03:27]} Nxc3
{[%clk 00:58:42]} {[%emt 00:01:52]} 14. bxc3 {[%clk 01:06:19]} {[%emt
00:03:48]} Bd7 {[%clk 00:58:37]} {[%emt 00:00:34]} 15. Rb1 {[%clk 01:04:26]}
{[%emt 00:02:24]} Ne4 {[%clk 00:56:30]} {[%emt 00:02:37]} 16. Nd2 {[%clk
00:59:54]} {[%emt 00:05:02]} a6 {[%clk 00:48:06]} {[%emt 00:08:54]} 17. Bd3
{[%clk 00:54:14]} {[%emt 00:06:09]} Nxd2 {[%clk 00:46:29]} {[%emt 00:02:08]} 18.
Bxd2 {[%clk 00:54:40]} {[%emt 00:00:04]} Bc6 {[%clk 00:46:48]} {[%emt
00:00:11]} 19. Bf4 {[%clk 00:48:11]} {[%emt 00:06:59]} Bf8 {[%clk 00:45:33]}
{[%emt 00:01:44]} 20. c4 {[%clk 00:40:43]} {[%emt 00:07:58]} Qh4 {[%clk
00:36:34]} {[%emt 00:09:29]} 21. g3 {[%clk 00:35:04]} {[%emt 00:06:09]} Qh5
{[%clk 00:34:35]} {[%emt 00:02:29]} 22. d5 {[%clk 00:34:42]} {[%emt 00:00:53]}
Bd7 {[%clk 00:34:44]} {[%emt 00:00:20]} 23. Rb3 {[%clk 00:29:48]} {[%emt
00:05:25]} Bh3 {[%clk 00:33:18]} {[%emt 00:01:56]} 24. Rfb1 {[%clk 00:29:50]}
{[%emt 00:00:28]} b5 {[%clk 00:27:47]} {[%emt 00:06:00]} 25. Bxd6 {[%clk
00:25:16]} {[%emt 00:05:04]} Rac8 {[%clk 00:22:49]} {[%emt 00:05:28]} 26. c5
{[%clk 00:21:44]} {[%emt 00:04:02]} Qxd5 {[%clk 00:22:37]} {[%emt 00:00:42]} 27.
Bf1 {[%clk 00:22:05]} {[%emt 00:00:09]} Bf5 {[%clk 00:21:01]} {[%emt 00:02:07]}
28. Bg2 {[%clk 00:21:19]} {[%emt 00:01:15]} Qd2 {[%clk 00:20:26]} {[%emt
00:01:05]} 29. Rf1 {[%clk 00:18:01]} {[%emt 00:03:48]} Bxd6 {[%clk 00:20:41]}
{[%emt 00:00:15]} 30. cxd6 {[%clk 00:18:21]} {[%emt 00:00:09]} Rc2 {[%clk
00:20:55]} {[%emt 00:00:17]} 31. Qxa6 {[%clk 00:16:42]} {[%emt 00:02:10]} Re1
{[%clk 00:20:16]} {[%emt 00:01:08]} 32. Qa8+ {[%clk 00:13:54]} {[%emt
00:03:19]} Kg7 {[%clk 00:20:37]} {[%emt 00:00:08]} 33. Qa7 {[%clk 00:11:37]}
{[%emt 00:02:47]} Rcc1 {[%clk 00:19:43]} {[%emt 00:01:23]} 34. h4 {[%clk
00:03:07]} {[%emt 00:09:00]} Qd1 {[%clk 00:19:05]} {[%emt 00:01:09]} 35. g4
{[%clk 00:01:16]} {[%emt 00:02:21]} Rxf1+ {[%clk 00:19:27]} {[%emt 00:00:08]}
36. Kh2 {[%clk 00:01:38]} {[%emt 00:00:09]} Rh1+ {[%clk 00:18:12]} {[%emt
00:01:44]} 37. Bxh1 {[%clk 00:01:46]} {[%emt 00:00:22]} Qxh1+ {[%clk 00:18:35]}
{[%emt 00:00:07]} 0-1

[Event "Nové Hrady - Open"]
[Site "Nové Hrady, Czech Republic"]
[Date "2024.08.15"]
[Round "5.3"]
[White "Hokr, Matyáš"]
[Black "Hrbek, Jáchym"]
[Result "0-1"]
[TimeControl "2x90min+30s"]
[WhiteFideId "23734663"]
[BlackFideId "23709138"]
[WhiteElo "1641"]
[BlackElo "1996"]

1. Nf3 {[%clk 01:30:50]} {[%emt 00:00:09]} f5 {[%clk 01:30:43]} {[%emt
00:00:18]} 2. d3 {[%clk 01:29:48]} {[%emt 00:01:31]} Nf6 {[%clk 01:30:06]}
{[%emt 00:01:08]} 3. Bg5 {[%clk 01:28:57]} {[%emt 00:01:20]} d6 {[%clk
01:25:29]} {[%emt 00:05:07]} 4. Bxf6 {[%clk 01:26:32]} {[%emt 00:02:56]} exf6
{[%clk 01:21:50]} {[%emt 00:04:09]} 5. e4 {[%clk 01:24:31]} {[%emt 00:02:31]}
fxe4 {[%clk 01:11:02]} {[%emt 00:11:18]} 6. dxe4 {[%clk 01:24:40]} {[%emt
00:00:21]} Be6 {[%clk 01:11:03]} {[%emt 00:00:29]} 7. Nd4 {[%clk 01:21:38]}
{[%emt 00:03:32]} Bf7 {[%clk 01:11:14]} {[%emt 00:00:19]} 8. f4 {[%clk
01:20:10]} {[%emt 00:01:57]} d5 {[%clk 01:01:02]} {[%emt 00:10:42]} 9. Nd2
{[%clk 01:09:53]} {[%emt 00:10:48]} Bd6 {[%clk 00:49:56]} {[%emt 00:11:36]} 10.
Nf5 {[%clk 00:59:04]} {[%emt 00:11:19]} g6 {[%clk 00:45:42]} {[%emt 00:04:44]}
11. Nxd6+ {[%clk 00:58:17]} {[%emt 00:01:17]} Qxd6 {[%clk 00:46:09]} {[%emt
00:00:03]} 12. Qf3 {[%clk 00:58:13]} {[%emt 00:00:32]} Nc6 {[%clk 00:42:45]}
{[%emt 00:03:55]} 13. Bb5 {[%clk 00:52:29]} {[%emt 00:06:15]} O-O-O {[%clk
00:42:36]} {[%emt 00:00:38]} 14. O-O-O {[%clk 00:45:31]} {[%emt 00:07:27]} Nd4
{[%clk 00:41:29]} {[%emt 00:01:38]} 15. Qd3 {[%clk 00:45:13]} {[%emt 00:00:49]}
dxe4 {[%clk 00:41:33]} {[%emt 00:00:26]} 16. Nxe4 {[%clk 00:42:12]} {[%emt
00:03:31]} Qxf4+ {[%clk 00:41:47]} {[%emt 00:00:14]} 0-1

[Event "Nové Hrady - Open"]
[Site "Nové Hrady, Czech Republic"]
[Date "2024.08.15"]
[Round "5.4"]
[White "Steinbauer, Sebastián"]
[Black "Šebesta, Marek"]
[Result "0-1"]
[TimeControl "2x90min+30s"]
[WhiteFideId "399272"]
[BlackFideId "23765119"]
[WhiteElo "1990"]
[BlackElo "1495"]

1. e4 {[%clk 01:30:57]} {[%emt 00:00:03]} e5 {[%clk 01:30:57]} {[%emt
00:00:04]} 2. Nf3 {[%clk 01:31:25]} {[%emt 00:00:03]} Nc6 {[%clk 01:31:23]}
{[%emt 00:00:04]} 3. Bc4 {[%clk 01:31:50]} {[%emt 00:00:04]} Nf6 {[%clk
01:31:48]} {[%emt 00:00:05]} 4. Ng5 {[%clk 01:32:09]} {[%emt 00:00:11]} d5
{[%clk 01:31:40]} {[%emt 00:00:37]} 5. exd5 {[%clk 01:32:30]} {[%emt 00:00:09]}
Nd4 {[%clk 01:31:53]} {[%emt 00:00:18]} 6. c3 {[%clk 01:22:18]} {[%emt
00:10:42]} b5 {[%clk 01:30:00]} {[%emt 00:02:24]} 7. Bf1 {[%clk 01:13:55]}
{[%emt 00:08:52]} Nxd5 {[%clk 01:28:40]} {[%emt 00:01:50]} 8. cxd4 {[%clk
01:14:03]} {[%emt 00:00:21]} Qxg5 {[%clk 01:28:11]} {[%emt 00:00:59]} 9. Bxb5+
{[%clk 01:14:24]} {[%emt 00:00:10]} Kd8 {[%clk 01:20:52]} {[%emt 00:07:49]} 10.
Qf3 {[%clk 01:13:46]} {[%emt 00:01:07]} Bb7 {[%clk 01:06:35]} {[%emt 00:14:47]}
11. O-O {[%clk 01:12:59]} {[%emt 00:01:17]} Rb8 {[%clk 00:59:06]} {[%emt
00:08:00]} 12. Qxf7 {[%clk 01:12:28]} {[%emt 00:01:00]} Nf6 {[%clk 00:57:04]}
{[%emt 00:02:31]} 13. f3 {[%clk 01:08:32]} {[%emt 00:04:27]} Bd5 {[%clk
00:56:20]} {[%emt 00:01:15]} 14. d3 {[%clk 01:08:57]} {[%emt 00:00:05]} Qh4
{[%clk 00:53:43]} {[%emt 00:03:05]} 15. Qxf8+ {[%clk 01:06:16]} {[%emt
00:03:12]} Rxf8 {[%clk 00:53:48]} {[%emt 00:00:25]} 16. dxe5 {[%clk 01:06:43]}
{[%emt 00:00:04]} Rxb5 {[%clk 00:52:21]} {[%emt 00:01:57]} 17. Nc3 {[%clk
01:07:04]} {[%emt 00:00:09]} Rb8 {[%clk 00:51:15]} {[%emt 00:01:36]} 18. exf6
{[%clk 01:07:26]} {[%emt 00:00:07]} Qd4+ {[%clk 00:50:01]} {[%emt 00:01:45]} 19.
Kh1 {[%clk 01:07:52]} {[%emt 00:00:03]} Bc6 {[%clk 00:48:14]} {[%emt 00:02:17]}
20. fxg7 {[%clk 01:08:00]} {[%emt 00:00:22]} Qxg7 {[%clk 00:47:57]} {[%emt
00:00:47]} 21. Re1 {[%clk 01:07:43]} {[%emt 00:00:47]} Rg8 {[%clk 00:47:15]}
{[%emt 00:01:12]} 22. Re2 {[%clk 01:07:06]} {[%emt 00:01:07]} Bxf3 {[%clk
00:46:37]} {[%emt 00:01:08]} 23. Bg5+ {[%clk 01:07:29]} {[%emt 00:00:07]} Qxg5
{[%clk 00:46:49]} {[%emt 00:00:18]} 24. gxf3 {[%clk 01:07:58]} Rb6 {[%clk
00:44:24]} {[%emt 00:02:56]} 25. Ne4 {[%clk 01:07:58]} {[%emt 00:00:30]} Qf4
{[%clk 00:44:04]} {[%emt 00:00:49]} 26. Rf1 {[%clk 01:08:24]} {[%emt 00:00:05]}
Rc6 {[%clk 00:43:35]} {[%emt 00:01:00]} 27. Nc3 {[%clk 01:08:00]} {[%emt
00:00:53]} Rcg6 {[%clk 00:42:47]} {[%emt 00:01:17]} 28. Re4 {[%clk 01:07:29]}
{[%emt 00:01:02]} Qxf3+ {[%clk 00:42:59]} {[%emt 00:00:18]} 0-1

[Event "Nové Hrady - Open"]
[Site "Nové Hrady, Czech Republic"]
[Date "2024.08.15"]
[Round "5.5"]
[White "Rendl, Luboš"]
[Black "Šťastná, Martina"]
[Result "0-1"]
[TimeControl "2x90min+30s"]
[WhiteFideId "23750197"]
[BlackFideId "385123"]
[WhiteElo "1848"]
[BlackElo "1945"]

1. e4 {[%clk 01:30:57]} {[%emt 00:00:02]} e5 {[%clk 01:30:51]} {[%emt
00:00:10]} 2. Nf3 {[%clk 01:31:23]} {[%emt 00:00:04]} Nc6 {[%clk 01:31:12]}
{[%emt 00:00:09]} 3. Bc4 {[%clk 01:31:33]} {[%emt 00:00:20]} Bc5 {[%clk
01:31:08]} {[%emt 00:00:33]} 4. O-O {[%clk 01:31:04]} {[%emt 00:00:59]} d6
{[%clk 01:29:38]} {[%emt 00:02:00]} 5. c3 {[%clk 01:30:22]} {[%emt 00:01:12]}
Nf6 {[%clk 01:21:31]} {[%emt 00:08:37]} 6. d3 {[%clk 01:30:19]} {[%emt
00:00:33]} O-O {[%clk 01:21:16]} {[%emt 00:00:46]} 7. Bb3 {[%clk 01:29:06]}
{[%emt 00:01:43]} h6 {[%clk 01:16:46]} {[%emt 00:04:59]} 8. Nbd2 {[%clk
01:29:05]} {[%emt 00:00:31]} a6 {[%clk 01:08:18]} {[%emt 00:08:59]} 9. Re1
{[%clk 01:28:56]} {[%emt 00:00:39]} b5 {[%clk 01:06:52]} {[%emt 00:01:55]} 10.
Nf1 {[%clk 01:29:00]} {[%emt 00:00:26]} Be6 {[%clk 01:05:09]} {[%emt 00:02:14]}
11. Bxe6 {[%clk 01:28:09]} {[%emt 00:01:20]} fxe6 {[%clk 01:05:32]} {[%emt
00:00:07]} 12. Be3 {[%clk 01:27:51]} {[%emt 00:00:49]} Bxe3 {[%clk 01:04:34]}
{[%emt 00:01:28]} 13. Nxe3 {[%clk 01:28:17]} {[%emt 00:00:03]} Qd7 {[%clk
01:02:36]} {[%emt 00:02:29]} 14. a4 {[%clk 01:22:16]} {[%emt 00:06:31]} Ne7
{[%clk 00:57:51]} {[%emt 00:05:14]} 15. Qc2 {[%clk 01:19:58]} {[%emt 00:02:49]}
c5 {[%clk 00:54:06]} {[%emt 00:04:15]} 16. axb5 {[%clk 01:15:07]} {[%emt
00:05:21]} axb5 {[%clk 00:54:29]} {[%emt 00:00:08]} 17. b4 {[%clk 01:15:11]}
{[%emt 00:00:25]} cxb4 {[%clk 00:49:56]} {[%emt 00:05:02]} 18. cxb4 {[%clk
01:14:14]} {[%emt 00:01:28]} Nc6 {[%clk 00:48:56]} {[%emt 00:01:30]} 19. Qb3
{[%clk 01:13:35]} {[%emt 00:01:08]} Kh7 {[%clk 00:48:57]} {[%emt 00:00:28]} 20.
Nc2 {[%clk 01:11:12]} {[%emt 00:02:55]} Rxa1 {[%clk 00:42:30]} {[%emt
00:06:57]} 21. Rxa1 {[%clk 01:11:28]} {[%emt 00:00:13]} d5 {[%clk 00:42:38]}
{[%emt 00:00:22]} 22. Nd2 {[%clk 01:06:36]} {[%emt 00:05:22]} dxe4 {[%clk
00:39:07]} {[%emt 00:04:01]} 23. Nxe4 {[%clk 01:06:55]} {[%emt 00:00:11]} Nxe4
{[%clk 00:39:18]} {[%emt 00:00:20]} 24. dxe4 {[%clk 01:07:18]} {[%emt
00:00:06]} Nd4 {[%clk 00:36:04]} {[%emt 00:03:45]} 25. Qd3 {[%clk 01:05:24]}
{[%emt 00:02:21]} Nf3+ {[%clk 00:34:22]} {[%emt 00:02:14]} 26. Qxf3 {[%clk
01:04:27]} {[%emt 00:01:27]} Rxf3 {[%clk 00:34:46]} {[%emt 00:00:06]} 27. gxf3
{[%clk 01:04:51]} {[%emt 00:00:06]} Qd2 {[%clk 00:35:02]} {[%emt 00:00:14]} 28.
Ne3 {[%clk 01:05:06]} {[%emt 00:00:15]} Qxb4 {[%clk 00:35:21]} {[%emt
00:00:11]} 29. Rd1 {[%clk 01:05:24]} {[%emt 00:00:12]} Qc5 {[%clk 00:33:18]}
{[%emt 00:02:33]} 30. Rd7 {[%clk 01:05:19]} {[%emt 00:00:35]} b4 {[%clk
00:33:00]} {[%emt 00:00:48]} 31. Ng4 {[%clk 01:05:29]} {[%emt 00:00:20]} b3
{[%clk 00:28:11]} {[%emt 00:05:19]} 32. Nf6+ {[%clk 01:05:33]} {[%emt
00:00:26]} Kg6 {[%clk 00:28:31]} {[%emt 00:00:11]} 33. Ne8 {[%clk 01:05:52]}
{[%emt 00:00:10]} Qc1+ {[%clk 00:23:17]} {[%emt 00:05:44]} 34. Kg2 {[%clk
01:06:07]} {[%emt 00:00:15]} Qg5+ {[%clk 00:23:40]} {[%emt 00:00:07]} 35. Kh3
{[%clk 01:05:18]} {[%emt 00:01:19]} Qf4 {[%clk 00:23:23]} {[%emt 00:00:45]} 36.
Rxg7+ {[%clk 01:04:10]} {[%emt 00:01:41]} Kh5 {[%clk 00:23:45]} {[%emt
00:00:07]} 37. Rg1 {[%clk 01:02:14]} {[%emt 00:02:26]} Qxf3+ {[%clk 00:24:02]}
{[%emt 00:00:14]} 0-1

[Event "Nové Hrady - Open"]
[Site "Nové Hrady, Czech Republic"]
[Date "2024.08.15"]
[Round "5.6"]
[White "Slabý, Matěj"]
[Black "Picek, Miroslav"]
[Result "1/2-1/2"]
[TimeControl "2x90min+30s"]
[WhiteFideId "23734876"]
[BlackFideId "325198"]
[WhiteElo "2020"]
[BlackElo "1922"]

1. Nf3 {[%clk 01:30:57]} {[%emt 00:00:02]} c5 {[%clk 01:30:23]} {[%emt
00:00:38]} 2. c3 {[%clk 01:31:20]} {[%emt 00:00:07]} d5 {[%clk 01:28:50]}
{[%emt 00:02:03]} 3. d4 {[%clk 01:31:43]} {[%emt 00:00:06]} cxd4 {[%clk
01:28:21]} {[%emt 00:00:58]} 4. cxd4 {[%clk 01:32:08]} {[%emt 00:00:07]} Nc6
{[%clk 01:28:35]} {[%emt 00:00:17]} 5. Nc3 {[%clk 01:32:20]} {[%emt 00:00:17]}
Nf6 {[%clk 01:28:34]} {[%emt 00:00:31]} 6. Bf4 {[%clk 01:32:43]} {[%emt
00:00:07]} e6 {[%clk 01:28:25]} {[%emt 00:00:38]} 7. e3 {[%clk 01:30:12]}
{[%emt 00:03:01]} a6 {[%clk 01:22:39]} {[%emt 00:06:16]} 8. Rc1 {[%clk
01:27:48]} {[%emt 00:02:54]} Nh5 {[%clk 01:17:28]} {[%emt 00:05:41]} 9. Bg5
{[%clk 01:22:30]} {[%emt 00:05:48]} Be7 {[%clk 01:13:18]} {[%emt 00:04:40]} 10.
Bxe7 {[%clk 01:22:55]} {[%emt 00:00:05]} Qxe7 {[%clk 01:13:22]} {[%emt
00:00:26]} 11. Ne5 {[%clk 01:23:20]} {[%emt 00:00:04]} Nxe5 {[%clk 01:11:50]}
{[%emt 00:02:04]} 12. dxe5 {[%clk 01:23:45]} {[%emt 00:00:05]} g6 {[%clk
01:12:02]} {[%emt 00:00:17]} 13. Qd2 {[%clk 01:01:00]} {[%emt 00:23:15]} b5
{[%clk 01:01:28]} {[%emt 00:11:04]} 14. Be2 {[%clk 00:45:56]} {[%emt 00:15:35]}
Ng7 {[%clk 00:52:32]} {[%emt 00:09:25]} 15. e4 {[%clk 00:41:41]} {[%emt
00:04:45]} b4 {[%clk 00:48:44]} {[%emt 00:04:18]} 16. Na4 {[%clk 00:41:52]}
{[%emt 00:00:20]} Bb7 {[%clk 00:48:56]} {[%emt 00:00:18]} 17. Nc5 {[%clk
00:37:08]} {[%emt 00:05:13]} O-O {[%clk 00:40:12]} {[%emt 00:09:14]} 18. Qxb4
{[%clk 00:36:54]} {[%emt 00:00:44]} Rfb8 {[%clk 00:40:16]} {[%emt 00:00:26]} 19.
O-O {[%clk 00:36:17]} {[%emt 00:01:08]} a5 {[%clk 00:37:32]} {[%emt 00:03:14]}
20. Qa4 {[%clk 00:31:08]} {[%emt 00:05:38]} dxe4 {[%clk 00:36:51]} {[%emt
00:01:11]} 21. Nxe4 {[%clk 00:31:19]} {[%emt 00:00:20]} Bxe4 {[%clk 00:36:37]}
{[%emt 00:00:43]} 22. Qxe4 {[%clk 00:31:44]} {[%emt 00:00:06]} Qb4 {[%clk
00:36:01]} {[%emt 00:01:05]} 23. Qxb4 {[%clk 00:23:15]} {[%emt 00:08:59]} Rxb4
{[%clk 00:35:37]} {[%emt 00:00:54]} 24. b3 {[%clk 00:20:56]} {[%emt 00:02:50]}
Nf5 {[%clk 00:34:53]} {[%emt 00:01:13]} 25. Rfd1 {[%clk 00:20:18]} {[%emt
00:01:08]} Ra7 {[%clk 00:34:26]} {[%emt 00:00:57]} 26. Bc4 {[%clk 00:19:10]}
{[%emt 00:01:38]} a4 {[%clk 00:31:46]} {[%emt 00:03:09]} 27. a3 {[%clk
00:18:11]} {[%emt 00:01:29]} Rxb3 {[%clk 00:26:52]} {[%emt 00:05:24]} 28. Bxb3
{[%clk 00:18:04]} {[%emt 00:00:38]} axb3 {[%clk 00:27:20]} {[%emt 00:00:02]} 29.
Rb1 {[%clk 00:17:41]} {[%emt 00:00:53]} Rxa3 {[%clk 00:27:38]} {[%emt
00:00:13]} 30. Rd3 {[%clk 00:17:48]} {[%emt 00:00:22]} Ra5 {[%clk 00:27:14]}
{[%emt 00:00:55]} 31. f4 {[%clk 00:17:20]} {[%emt 00:00:56]} Ra4 {[%clk
00:24:35]} {[%emt 00:03:10]} 32. g3 {[%clk 00:16:39]} {[%emt 00:01:10]} Nd4
{[%clk 00:21:23]} {[%emt 00:03:43]} 33. Kf2 {[%clk 00:15:55]} {[%emt 00:01:14]}
Ra2+ {[%clk 00:21:23]} {[%emt 00:00:30]} 34. Ke3 {[%clk 00:12:53]} {[%emt
00:03:32]} Nf5+ {[%clk 00:21:11]} {[%emt 00:00:42]} 35. Kf3 {[%clk 00:12:31]}
{[%emt 00:00:52]} Rxh2 {[%clk 00:19:25]} {[%emt 00:02:16]} 36. Rbxb3 {[%clk
00:12:52]} {[%emt 00:00:09]} h5 {[%clk 00:19:00]} {[%emt 00:00:55]} 37. Rd8+
{[%clk 00:09:07]} {[%emt 00:04:14]} Kg7 {[%clk 00:18:01]} {[%emt 00:01:29]} 38.
Rbb8 {[%clk 00:09:15]} {[%emt 00:00:23]} Nh6 {[%clk 00:18:10]} {[%emt
00:00:21]} 39. Rh8 {[%clk 00:09:04]} {[%emt 00:00:41]} Rc2 {[%clk 00:17:40]}
{[%emt 00:01:00]} 40. Rhc8 {[%clk 00:08:52]} {[%emt 00:00:42]} Ra2 {[%clk
00:17:43]} {[%emt 00:00:26]} 1/2-1/2